Cogmind - Beta 9.4 @@@ ROGUE MODE // 2020.01.11 @ 21:41:30 Player: OccultOnion Result: Destroyed by D-53 Grenadier with Mini Grenade Launcher Performance ------------- Evolutions (0) 0 Regions Visited (2) 400 Robots Destroyed (6) 30 Value Destroyed (78) 78 Prototype IDs (0) 0 Alien Tech Used (0) 0 Bonus (0) 0 TOTAL SCORE: 508 Bonus ------- None Cogmind --------- Core Integrity 0/250 Matter 289/300 Energy 121/125 System Corruption 0% Temperature Cool (2) Movement Walking (120) Location -10/Mines Parts ------- > --- POWER (1) -------- Light Ion Engine > --- PROPULSION (2) --- Aluminum Leg Aluminum Leg > --- UTILITY (2) ------ Large Storage Unit > --- WEAPON (2) ------- Small Laser > --- INVENTORY (10) --- Ion Engine Light Treads Light Treads Aluminum Leg Small Storage Unit ECM Suite Light Assault Rifle Rocket Launcher Peak State ------------ > --- POWER ------------ Light Ion Engine > --- PROPULSION ------- Aluminum Leg Aluminum Leg > --- UTILITY ---------- Large Storage Unit Improved Terrain Scanner > --- WEAPON ----------- Medium Laser Light Assault Rifle > --- INVENTORY -------- Ion Engine Light Treads Light Treads Aluminum Leg Small Storage Unit ECM Suite Small Laser Light Assault Rifle Light Assault Rifle Rocket Launcher [Rating: 9] Favorites ----------- Power Light Ion Engine Engine Light Ion Engine Propulsion Aluminum Leg Leg Aluminum Leg Utility Improved Terrain Scanner Device Improved Terrain Scanner Storage Large Storage Unit Weapon Medium Laser Energy Gun Medium Laser Ballistic Gun Light Assault Rifle Build | -11 -10 -10 ------- Run | Scr Mat Min Slots Evolved . | . . . Power . | . . . Propulsion . | . . . Utility . | . . . Weapon . | . . . Parts Attached 10 | 7 1 2 Power 1 | 1 . . Engine 1 | 1 . . Core . | . . . Reactor . | . . . Propulsion 2 | 2 . . Treads . | . . . Leg 2 | 2 . . Wheel . | . . . Hover . | . . . Flight . | . . . Utility 3 | 2 1 . Device 1 | 1 . . Storage 2 | 1 1 . Processor . | . . . Hackware . | . . . Protection . | . . . Artifact . | . . . Weapon 4 | 2 . 2 Energy Gun 2 | 1 . 1 Energy Cannon . | . . . Ballistic Gun 2 | 1 . 1 Ballistic Cannon . | . . . Launcher . | . . . Special Weapon . | . . . Impact Weapon . | . . . Slashing Weapon . | . . . Piercing Weapon . | . . . Special Melee Weapon . | . . . Unidentified Prototypes . | . . . Parts Lost 4 | . . 4 Power . | . . . Propulsion . | . . . Utility 1 | . . 1 Weapon 3 | . . 3 Highest Loss Streak 4 | . . 4 Average Slot Usage (%) 99 | . 100 98 Engine 14 | . 14 14 Leg 28 | . 28 28 Device 13 | . 14 13 Storage 14 | . 14 14 Energy Gun 14 | . 14 14 Ballistic Gun 13 | . 14 13 Naked Turns . | . . . Heaviest Build 23 | 11 23 23 Greatest Support 20 | 20 20 20 Greatest Overweight (x) 1 | 1 1 1 Average Overweight (x) . | . . . Largest Inventory Capacity 10 | 6 10 10 Average Capacity 8 | 5 9 10 Most Carried 10 | 5 7 10 Average Carried 6 | 3 5 8 Final Capacity 10 | 6 10 10 Final Carried 8 | 4 7 8 Class Distribution -------------------- 100% | Mutant Dominant Class ---------------- Mutant | -10/Materials Mutant | -10/Mines Resources | -11 -10 -10 ----------- Run | Scr Mat Min Matter Collected 298 | 272 16 10 Remotely . | . . . Salvage Created 135 | 44 43 48 Parts 10 | 6 1 3 Haulers Intercepted . | . . . Recyclers Shooed . | . . . Parts Field Recycled . | . . . Retrieved Matter . | . . . Parts Self-Destructed . | . . . Prevented . | . . . Kills | -11 -10 -10 ------- Run | Scr Mat Min Combat Hostiles Destroyed 4 | . 1 3 Guns 4 | . 1 3 Classes Destroyed 3 | 1 1 1 Tunneler 2 | 2 . . Swarmer 3 | . . 3 Grunt 1 | . 1 . Best Kill Streak 3 | 2 1 3 Combat Bots Only 3 | . 1 3 Max Kills in Single Turn 2 | 1 1 2 Gunslinging 1 | . . 1 Exploded . | . . . Melee . | . . . Uniques/NPCs Destroyed . | . . . Combat | -11 -10 -10 -------- Run | Scr Mat Min Damage Taken 694 | . 77 617 Core 267 | . 10 257 Absorbed by Shields . | . . . Core Remaining (%) 100 | 100 . . Volleys Fired 20 | 2 6 12 Largest 2 | 2 2 2 Hottest 70 | 70 70 70 Shots Fired 39 | 4 12 23 Gun 39 | 4 12 23 Cannon . | . . . Launcher . | . . . Special . | . . . Kinetic 20 | 2 6 12 Thermal 19 | 2 6 11 Explosive . | . . . Electromagnetic . | . . . Robot Hit Streak 9 | 2 4 9 Robot Miss Streak 3 | . 2 3 Penetration Max . | . . . Secondary Targets 1 | . . 1 Max Gunslinging Chain 1 | . . 1 Shots Hit Robots 24 | 2 7 15 Core Hits 9 | 2 3 4 Critical Hits . | . . . Critical Kills . | . . . Critical Parts Destroyed . | . . . Melee Attacks . | . . . Impact . | . . . Slashing . | . . . Piercing . | . . . Sneak Attacks . | . . . Combat Hostiles . | . . . Follow-up Attacks . | . . . Damage Inflicted 208 | 26 57 125 Guns 208 | 26 57 125 Cannons . | . . . Explosions . | . . . Melee . | . . . Ramming . | . . . Kinetic 70 | . 19 51 Thermal 138 | 26 38 74 Explosive . | . . . Electromagnetic . | . . . Impact . | . . . Slashing . | . . . Piercing . | . . . Highest Corruption . | . . . Average Corruption . | . . . Corruption Purged . | . . . Overload Shots . | . . . Overflow Damage . | . . . Projectiles . | . . . Explosions . | . . . Melee . | . . . Knockbacks . | . . . Impact . | . . . Kinetic . | . . . Secondary . | . . . Self-Inflicted Damage . | . . . Shots . | . . . Rammed . | . . . Targets Rammed . | . . . Kicked . | . . . Crushed . | . . . Highest Temperature 140 | 30 52 140 Average Temperature 49 | 18 26 67 Received Heat Transfer 42 | . 42 . Siege Activations . | . . . Robots Corrupted . | . . . Combat Hostiles . | . . . Parts Fried . | . . . Impact Corruptions . | . . . Robots Melted . | . . . Combat Hostiles . | . . . Parts Melted 1 | . . 1 Heat Transferred 395 | 74 111 210 Parts Sabotaged . | . . . Parts Stolen . | . . . Parts Stripped . | . . . Power Chain Reactions . | . . . Missiles Intercepted . | . . . Alert | -11 -10 -10 ------- Run | Scr Mat Min Peak Influence 95 | 10 66 95 Average Influence 52 | 4 28 85 Maximum Alert Level . | . . . Low Security (%) 100 | 100 100 100 Level 1 . | . . . Level 2 . | . . . Level 3 . | . . . Level 4 . | . . . Level 5 . | . . . High Security . | . . . Max Security . | . . . Squads Dispatched 2 | . 2 . Investigation . | . . . Extermination . | . . . Reinforcement 2 | . 2 . Assault . | . . . Garrison . | . . . Intercept . | . . . Construction Impeded . | . . . Haulers Reinforced . | . . . Stealth | -11 -10 -10 --------- Run | Scr Mat Min Distress Signals . | . . . Communications Jammed . | . . . Distress Signals . | . . . Times Spotted 13 | . 4 9 Peak Tracking Total 4 | . 2 4 Tactical Retreats 1 | . . 1 Traps | -11 -10 -10 ------- Run | Scr Mat Min Traps Triggered . | . . . Indirectly . | . . . Trap Hack Attempts . | . . . Triggered . | . . . Disarmed . | . . . Reprogrammed . | . . . Reused . | . . . Traps Extracted . | . . . Installed . | . . . Triggered . | . . . Machines | -11 -10 -10 ---------- Run | Scr Mat Min Machines Disabled . | . . . Max in Single Turn . | . . . Machines Sabotaged . | . . . Garrisons Compromised . | . . . Overloaded Fab Kills . | . . . Fab Network Shutdowns . | . . . Hacking | -11 -10 -10 --------- Run | Scr Mat Min Machines Accessed 1 | . 1 . Terminals 1 | . 1 . Fabricators . | . . . Repair Stations . | . . . Recycling Units . | . . . Scanalyzers . | . . . Garrison Access . | . . . Total Hacks 1 | . 1 . Successful . | . . . Failed 1 | . 1 . Catastrophic 1 | . 1 . Database Lockouts . | . . . Manual 1 | . 1 . Terminals 1 | . 1 . Fabricators . | . . . Repair Stations . | . . . Recycling Units . | . . . Scanalyzers . | . . . Garrison Access . | . . . Terminal Hacks . | . . . Fabricator Hacks . | . . . Repair Station Hacks . | . . . Recycling Unit Hacks . | . . . Scanalyzer . | . . . Garrison Access Hacks . | . . . Unauthorized Hacks . | . . . Terminals . | . . . Fabricators . | . . . Repair Stations . | . . . Recycling Units . | . . . Scanalyzers . | . . . Garrison Access . | . . . Data Cores Recovered . | . . . Used . | . . . Hacking Detections 1 | . 1 . Full Trace Events . | . . . Feedback Events . | . . . Feedback Blocked . | . . . Robot Schematics Acquired . | . . . Robots Built . | . . . Matter . | . . . Time . | . . . Total Robot Build Rating . | . . . Part Schematics Acquired . | . . . Parts Built . | . . . Matter . | . . . Time . | . . . Total Part Build Rating . | . . . Parts Repaired . | . . . Time . | . . . Parts Recycled . | . . . Recycled Matter . | . . . Retrieved Matter . | . . . Retrieved Components . | . . . Parts Scanalyzed . | . . . Part Schematics Acquired . | . . . Parts Damaged . | . . . Bothacking | -11 -10 -10 ------------ Run | Scr Mat Min Used RIF Installer . | . . . Robots Hacked . | . . . Non-combat . | . . . Combat . | . . . Robot Hacks Applied . | . . . Relay Couplers Released . | . . . Robots Rewired . | . . . Allies Hacked . | . . . Hacks Repelled . | . . . Allies | -11 -10 -10 -------- Run | Scr Mat Min Total Allies 2 | . . 2 Largest Group 2 | . . 2 Highest-Rated Group 43 | . . 43 Highest-Rated Ally 31 | . . 31 Total Orders . | . . . Ally Attacks 7 | . . 7 Total Damage 64 | . . 64 Kills 1 | . . 1 Allies Corrupted . | . . . Allies Melted . | . . . Intel | -11 -10 -10 ------- Run | Scr Mat Min Robot Analysis Total . | . . . Derelict Logs Recovered . | . . . Drone Launches . | . . . Drone Recoveries . | . . . Exploration | -11 -10 -10 ------------- Run | Scr Mat Min Turns Passed 440 | 112 95 233 Spaces Moved 255 | 73 51 131 Core 11 | 11 . . Treads . | . . . Legs 244 | 62 51 131 Wheels . | . . . Hover . | . . . Flight . | . . . Fastest Speed 50 | 50 120 120 Average Speed 137 | 110 147 149 Slowest Speed 150 | 120 150 150 Overloaded Moves . | . . . Propulsion Burnouts . | . . . Robots Hopped . | . . . Cave-ins Triggered . | . . . Exploration Rate (%) 19 | 5 9 44 Regions Visited 2 Branch Regions 1 Pre-discovered Areas . | . . . Known Exits Taken . | . . . Unknown Exits Taken 2 | 1 1 . Scrap Searched 1 | . . 1 Spaces Dug . | . . . Terrain Destroyed . | . . . Melee . | . . . Projectile . | . . . AOE . | . . . Actions | -11 -10 -10 --------- Run | Scr Mat Min Total 309 | 101 60 148 Wait 9 | 9 . . Move 253 | 72 50 131 Hop . | . . . Pick Up 17 | 11 3 3 Fast Attach . | . . . Attach 9 | 7 . 2 Detach . | . . . Swap 1 | . 1 . Drop . | . . . Fire 20 | 2 6 12 Melee . | . . . Ram . | . . . Kick . | . . . Crush . | . . . Escape Stasis . | . . . Rewire . | . . . Trap . | . . . Miscellaneous . | . . . Route ------- -11/Scrapyard -10/Materials -10/Mines History --------- Turn | Location | Event 21 | -11/Scrapyard | Discovered new exit (range 16) 113 | -11/Scrapyard | Entered Materials 113 | -10/Materials | Discovered new exit (range 9) 208 | -10/Materials | Entered Mines 312 | -10/Mines | Build established: Mutant 370 | -10/Mines | Assembled infested the area 382 | -10/Mines | Received a Rocket Launcher from a helpful Derelict 434 | -10/Mines | Core integrity fell below 50% 438 | -10/Mines | Core integrity fell below 20% 441 | -10/Mines | Destroyed by D-53 Grenadier with Mini Grenade Launcher Last Messages --------------- laser wimps, I say!" 00382_ 3T-ID5(g): "Would you like a rocket launcher? I know I would if I were you, so I'm going to lend you mine." 00382_ 3T-ID5(g) slips back into the shadows. 00390_ Acquired Rocket Launcher. 00390_ K-01 Serf collects debris. 00423_ Med. Laser destroyed. 00424_ Lgt. Assault Rifle destroyed. 00428_ U-05 Engineer lays Concrete. 00429_ U-05 Engineer builds a Wall. 00431_ Imp. Terrain Scanner destroyed. 00433_ K-01 Serf collects debris. 00435_ U-05 Engineer lays Concrete. 00437_ U-05 Engineer destroyed. 00438_ The unstable cave ceiling collapses. 00438_ K-01 Serf collects debris. 00439_ Lgt. Assault Rifle destroyed. 00440_ The unstable cave ceiling collapses. 00440_ K-01 Serf destroyed. 00440_ G-34 Mercenary destroyed. Map ----- +----------------------------------------------------+ | ????????????????????????????????????#?? ???? | | ????????????????????????????????????????# ## | | ?????????????????????????????????#??????# | | ????????????????????????????????????????# | | ????????????????????????????????????????#### | | ???????????????????????????????????????????? | | ??????????????????????????????????????????## | | ????????????????????????????????????#?#???# | | ????????????????????????????????????????#?# | | ????????????????????????##????????????????## | | ????????????????? ???????????##????????????? | | ????????????????# ?????????## # ??#????????? | | ????????????????# ?????????# * ??????#?##? | | ????????????????# ?????????# #??????## ? | | ????????????????# ????????# ?????### | | ??????????????### ????????# ????? ? ? | | ?????????????## ????????# ?????? ?# ? | | ????????????## ????????# ######??## ? | | ????????????? ??????### ? ??# ## | | ????????????? ####### d ####????# ## | | ??????????????## % # #???## | | ??????????????# %g= d #????# | | ??????????????#!%= % #??#?# # | | ????????????### ##???# # | | ?????????????# ##### # | | ?????????????## % @ ## # | | ??????????????## # #### # | | ???????????????## # #??# # | | ????????????????# ## ##### ##?## # | | ????????????????# ?#### #???## #??# | | ????????????????#????? #?#?## ##??# | | ??????????????????????= #??######???# | | ??????????????????????%= <#????#??????## | | ???????????????????? ?|! #????????????# | | ?????????????????? ???#! #???????????# | | ???????????????????????# ???????????# | | ???????????????????????? ??????????# | | ???????????????????????? ##??????????# | | ???????????????????????? ##???????????# | | ???????????????????????? ????????#????# | | ??????????????????????????????????????? | | ???????????????????????????????????????# | | ???????????????????????????????????????# | | ???????????????????????????????????????## | | ????????????????????????????????????????## | | ?????????????????????????????????#????#??? | | ?????????????????????????????????????????? | | ?????????????????????????????????????????? | | ?????????????????????????????????????????? | | ???????????????????????????????????????????? | +----------------------------------------------------+ Best States ------------- Heat Dissipation 25 Energy Generation 10 Energy Capacity 125 Matter Stores 300 Matter Capacity 300 Sight Range 16 Terrain Scan Range 16 Terrain Scan Density 10 Evasion (%) 50 Item Schematics ----------------- None Robot Schematics ------------------ None Fabricated ------------ Nothing Alien Tech Used ----------------- None Achievements -------------- None Challenges ------------ None Game ------ Seed RemoteStructuralLance Manual? 0 Play Time 00:04:59 Cumulative 23.7 hours Start 2020.01.11 @ 21:37:59 End 2020.01.11 @ 21:41:30 Sessions 1 Manual Loads 0 Difficulty Rogue Special Mode None Game No. 56 Rogue 56 Adventurer 0 Explorer 0 Win Type - Total 0 Types 0/0/0/0/0/0/0 Lore% 18 Gallery% 33 Achievement% 22 Wizard Run 0 Options --------- ASCII 0 Keyboard 0 Movement Numpad Keybinds 0 Fullscreen 1 Font 18/SmallcapsGlow Map View 76x50 Tactical HUD 1 Map Filters NONE Filters NONE Steam 1 RUN: e7fb1032-c898-4cb3-9094-eed40abdc537